fUSD/lending_fUSD_20240409
["ID","MTS","AMOUNT","RATE_DAILY","PERIOD"]
[322005311,1712680266835,-500.0,0.00020272,2]
[322005312,1712680266845,-500.0,0.00020272,2]
[322005313,1712680266855,-500.0,0.00020272,2]
[322005314,1712680266865,-500.0,0.00020272,2]
[322005315,1712680266875,-500.0,0.00020272,2]
[322005316,1712680266885,-500.0,0.00020272,2]
[322005317,1712680266895,-500.0,0.00020272,2]
[322005318,1712680266905,-500.0,0.00020272,2]
[322005319,1712680266914,-544.7,0.00020272,2]
[322005320,1712680266924,-500.0,0.00020272,2]
[322005321,1712680266933,-768.34,0.00020272,2]
[322005322,1712680266943,-500.0,0.00020272,2]
[322005323,1712680266953,-500.0,0.00020272,2]
[322005324,1712680266963,-500.0,0.00020272,2]
[322005325,1712680266973,-500.0,0.00020272,2]
[322005326,1712680266985,-500.0,0.00020272,2]
[322005327,1712680266995,-500.0,0.00020272,2]
[322005328,1712680267005,-500.0,0.00020272,2]
[322005329,1712680267015,-500.0,0.00020272,2]
[322005330,1712680267026,-500.0,0.00020272,2]
[322005331,1712680267036,-586.26,0.00020272,2]
[322005332,1712680267045,-500.0,0.00020272,2]
[322005333,1712680267056,-500.0,0.00020272,2]
[322005334,1712680267066,-500.0,0.00020272,2]
[322005335,1712680267076,-992.02,0.00020272,2]
[322005336,1712680267085,-886.57,0.00020272,2]
[322005337,1712680267095,-500.0,0.00020272,2]
[322005338,1712680267105,-500.0,0.00020272,2]
[322005339,1712680267115,-624.66,0.00020272,2]
[322005340,1712680267124,-553.65,0.00020272,2]
[322005341,1712680267134,-500.0,0.00020272,2]
[322005342,1712680267143,-500.0,0.00020272,2]
[322005343,1712680267152,-500.0,0.00020272,2]
[322005344,1712680267161,-500.0,0.00020272,2]
[322005345,1712680267171,-500.0,0.00020272,2]
[322005346,1712680267181,-500.0,0.00020272,2]
[322005347,1712680267190,-500.0,0.00020272,2]
[322005348,1712680267200,-500.0,0.00020272,2]
[322005349,1712680267211,-500.0,0.00020272,2]
[322005350,1712680267221,-500.0,0.00020272,2]
[322005351,1712680267233,-500.0,0.00020272,2]
[322005352,1712680267242,-500.0,0.00020272,2]
[322005353,1712680267252,-500.0,0.00020272,2]
[322005354,1712680267261,-500.0,0.00020272,2]
[322005355,1712680267271,-500.0,0.00020272,2]
[322005356,1712680267280,-771.71,0.00020272,2]
[322005357,1712680267290,-500.0,0.00020272,2]
[322005358,1712680267300,-928.63,0.00020272,2]
[322005359,1712680267309,-500.0,0.00020272,2]
[322005360,1712680267319,-500.0,0.00020272,2]
[322005361,1712680267328,-500.0,0.00020272,2]
[322005362,1712680267338,-2217.23,0.00020272,2]
[322005363,1712680267348,-517.11,0.00020272,2]
[322005364,1712680267358,-1095.84,0.00020272,2]
[322005365,1712680267367,-657.72,0.00020272,2]
[322005366,1712680267377,-500.0,0.00020272,2]
[322005367,1712680267387,-500.0,0.00020272,2]
[322005368,1712680267397,-2179.92,0.00020272,2]
[322005369,1712680267407,-500.0,0.00020272,2]
[322005370,1712680267416,-500.0,0.00020272,2]
[322005371,1712680267425,-2251.78,0.00020272,2]
[322005372,1712680267435,-500.0,0.00020272,2]
[322005373,1712680267444,-500.0,0.00020272,2]
[322005374,1712680267454,-500.0,0.00020272,2]
[322005375,1712680267464,-500.0,0.00020272,2]
[322005376,1712680267474,-858.61,0.00020272,2]
[322005377,1712680267486,-500.0,0.00020272,2]
[322005378,1712680267495,-903.72,0.00020272,2]
[322005379,1712680267505,-500.0,0.00020272,2]
[322005380,1712680267515,-500.0,0.00020272,2]
[322005381,1712680267525,-500.0,0.00020272,2]
[322005382,1712680267535,-500.0,0.00020272,2]
[322005383,1712680267545,-500.0,0.00020272,2]
[322005384,1712680267555,-503.27,0.00020272,2]
[322005385,1712680267564,-500.0,0.00020272,2]
[322005386,1712680267577,-872.91,0.00020272,2]
[322005387,1712680267587,-10174.44,0.00020272,2]
[322005388,1712680267598,-500.0,0.00020272,2]
[322005389,1712680267608,-500.0,0.00020272,2]
[322005390,1712680267618,-500.0,0.00020272,2]
[322005391,1712680267628,-6310.08,0.00020272,2]
[322005392,1712680267638,-566.77,0.00020272,2]
[322005393,1712680267648,-517.67,0.00020272,2]
[322005394,1712680267658,-1707.27,0.00020272,2]
[322005395,1712680267668,-550.6,0.00020272,2]
[322005396,1712680267678,-855.06,0.00020272,2]
[322005397,1712680267687,-1249.31,0.00020272,2]
[322005398,1712680267697,-536.19,0.00020272,2]
[322005399,1712680267706,-616.98,0.00020272,2]
[322005400,1712680267716,-500.0,0.00020272,2]
[322005401,1712680267728,-500.0,0.00020272,2]
[322005402,1712680267738,-500.0,0.00020272,2]
[322005403,1712680267747,-500.0,0.00020272,2]
[322005404,1712680267757,-635.82,0.00020272,2]
[322005405,1712680267767,-500.0,0.00020272,2]
[322005406,1712680267776,-500.0,0.00020272,2]
[322005407,1712680267785,-771.65,0.00020272,2]
[322005408,1712680267795,-665.55,0.00020272,2]
[322005409,1712680267804,-500.0,0.00020272,2]
[322005410,1712680267814,-500.0,0.00020272,2]
[322005411,1712680267823,-803.6,0.00020272,2]
[322005412,1712680267833,-500.0,0.00020272,2]
[322005413,1712680267843,-578.65,0.00020272,2]
[322005414,1712680267852,-567.22,0.00020272,2]
[322005415,1712680267862,-500.0,0.00020272,2]
[322005416,1712680267874,-1178.63,0.00020272,2]
[322005417,1712680267883,-500.0,0.00020272,2]
[322005418,1712680267893,-3154.53,0.00020272,2]
[322005419,1712680267903,-500.0,0.00020272,2]
[322005420,1712680267913,-500.0,0.00020272,2]
[322005421,1712680267923,-500.0,0.00020272,2]
[322005422,1712680267933,-9124.33,0.00020272,2]
[322005423,1712680267943,-500.0,0.00020272,2]
[322005424,1712680267953,-500.0,0.00020272,2]
[322005425,1712680267962,-500.0,0.00020272,2]
[322005426,1712680267972,-623.98,0.00020272,2]
[322005427,1712680267984,-500.0,0.00020273,2]
[322005428,1712680267993,-318.59298748,0.00020273,2]
[322005429,1712680268002,-500.0,0.00020273,2]
[322005430,1712680268012,-539.54,0.00020273,2]
[322005431,1712680268021,-500.0,0.00020273,2]
[322005432,1712680268031,-500.0,0.00020273,2]
[322005433,1712680268041,-324.57604181,0.00020273,2]
[322005434,1712680268050,-500.0,0.00020273,2]
[322005435,1712680268060,-500.0,0.00020273,2]
[322005436,1712680268069,-500.0,0.00020273,2]
[322005437,1712680268079,-154.99,0.00020273,2]
[322005438,1712680268089,-500.0,0.00020273,2]
[322005439,1712680268099,-500.0,0.00020273,2]
[322005440,1712680268108,-500.0,0.00020273,2]
[322005441,1712680268118,-500.0,0.00020273,2]
[322005442,1712680268127,-628.0,0.00020273,2]
[322005443,1712680268137,-275.19,0.00020273,2]
[322005444,1712680268147,-173.82,0.00020273,2]
[322005445,1712680268156,-500.0,0.00020273,2]
[322005446,1712680268165,-293.18044764,0.00020273,2]
[322005447,1712680268175,-294.27,0.00020273,2]
[322005448,1712680268185,-458.39,0.00020273,2]
[322005449,1712680268194,-500.0,0.00020273,2]
[322005450,1712680268203,-397.41,0.00020273,2]
[322005451,1712680268213,-500.0,0.00020273,2]
[322005452,1712680268222,-500.0,0.00020273,2]
[322005453,1712680268435,-500.0,0.00020273,2]
[322005454,1712680268450,-500.0,0.00020273,2]
[322005455,1712680268460,-500.0,0.00020273,2]
[322005456,1712680268469,-500.0,0.00020273,2]
[322005457,1712680268482,-500.0,0.00020273,2]
[322005458,1712680268492,-535.95,0.00020273,2]
[322005459,1712680268502,-500.0,0.00020273,2]
[322005460,1712680268511,-500.0,0.00020273,2]
[322005461,1712680268520,-500.0,0.00020273,2]
[322005462,1712680268529,-255.02325472,0.00020273,2]
[322005463,1712680268538,-500.0,0.00020273,2]
[322005464,1712680268547,-500.0,0.00020273,2]
[322005465,1712680268560,-448.06,0.00020273,2]
[322005466,1712680268570,-500.0,0.00020273,2]
[322005467,1712680268579,-430.22,0.00020273,2]
[322005468,1712680268589,-732.09,0.00020273,2]
[322005469,1712680268598,-500.0,0.00020273,2]
[322005470,1712680268608,-204.59,0.00020273,2]
[322005471,1712680268619,-500.0,0.00020273,2]
[322005472,1712680268628,-508.33,0.00020273,2]
[322005473,1712680268640,-500.0,0.00020273,2]
[322005474,1712680268649,-500.0,0.00020273,2]
[322005475,1712680268660,-500.0,0.00020273,2]
[322005476,1712680268669,-743.25,0.00020273,2]
[322005477,1712680268679,-500.0,0.00020273,2]
[322005478,1712680268689,-500.0,0.00020273,2]
[322005479,1712680268698,-500.0,0.00020273,2]
[322005480,1712680268708,-500.0,0.00020273,2]
[322005481,1712680268718,-500.0,0.00020273,2]
[322005482,1712680268730,-500.0,0.00020273,2]
[322005483,1712680268741,-619.26,0.00020273,2]
[322005484,1712680268751,-671.53,0.00020273,2]
[322005485,1712680268760,-500.0,0.00020273,2]
[322005486,1712680268770,-215.16,0.00020273,2]
[322005487,1712680268780,-681.73,0.00020273,2]
[322005488,1712680268790,-611.22,0.00020273,2]
[322005489,1712680268800,-645.6,0.00020273,2]
[322005490,1712680268809,-500.0,0.00020273,2]
[322005491,1712680268819,-500.0,0.00020273,2]
[322005492,1712680268829,-383.28,0.00020273,2]
[322005493,1712680268839,-500.0,0.00020273,2]
[322005494,1712680268849,-500.0,0.00020273,2]
[322005495,1712680268859,-559.13,0.00020273,2]
[322005496,1712680268868,-500.0,0.00020273,2]
[322005497,1712680268878,-500.0,0.00020273,2]
[322005498,1712680268887,-500.0,0.00020273,2]
[322005499,1712680268897,-500.0,0.00020273,2]
[322005500,1712680268906,-500.0,0.00020273,2]
[322005501,1712680268915,-500.0,0.00020273,2]
[322005502,1712680268924,-671.52,0.00020273,2]
[322005503,1712680268934,-844.11,0.00020273,2]
[322005504,1712680268943,-592.65,0.00020273,2]
[322005505,1712680268953,-500.0,0.00020273,2]
[322005506,1712680268962,-500.0,0.00020273,2]
[322005507,1712680268971,-500.0,0.00020273,2]
[322005508,1712680268982,-500.0,0.00020273,2]
[322005509,1712680268992,-597.69,0.00020273,2]
[322005510,1712680269001,-228.35,0.00020273,2]
[322005511,1712680269010,-500.0,0.00020273,2]
[322005512,1712680269020,-511.23684797,0.00020273,2]
[322005513,1712680269032,-500.0,0.00020273,2]
[322005514,1712680269041,-500.0,0.00020273,2]
[322005515,1712680269051,-500.0,0.00020273,2]
[322005516,1712680269061,-500.0,0.00020273,2]
[322005517,1712680269070,-500.0,0.00020273,2]
[322005518,1712680269079,-500.0,0.00020273,2]
[322005519,1712680269089,-256.27699177,0.00020273,2]
[322005520,1712680269099,-533.5,0.00020273,2]
[322005521,1712680269108,-500.0,0.00020273,2]
[322005522,1712680269118,-500.0,0.00020273,2]
[322005523,1712680269127,-500.0,0.00020273,2]
[322005524,1712680269137,-601.36990014,0.00020273,2]
[322005525,1712680269146,-500.0,0.00020273,2]
[322005526,1712680269155,-523.29,0.00020273,2]
[322005527,1712680269165,-500.0,0.00020273,2]
[322005528,1712680269175,-500.0,0.00020273,2]
[322005529,1712680269184,-500.0,0.00020273,2]
[322005530,1712680269194,-500.0,0.00020273,2]
[322005531,1712680269203,-509.76,0.00020273,2]
[322005532,1712680269212,-500.0,0.00020273,2]
[322005533,1712680269222,-500.0,0.00020273,2]
[322005534,1712680269233,-500.0,0.00020273,2]
[322005535,1712680269242,-518.52,0.00020273,2]
[322005536,1712680269252,-919.62,0.00020273,2]
[322005537,1712680269261,-500.0,0.00020273,2]
[322005538,1712680269270,-500.0,0.00020273,2]
[322005539,1712680269280,-785.16,0.00020273,2]
[322005540,1712680269290,-500.0,0.00020273,2]
[322005541,1712680269299,-542.74,0.00020273,2]
[322005542,1712680269309,-500.0,0.00020273,2]
[322005543,1712680269318,-500.0,0.00020273,2]
[322005544,1712680269328,-500.0,0.00020273,2]
[322005545,1712680269338,-562.18,0.00020273,2]
[322005546,1712680269347,-500.0,0.00020273,2]
[322005547,1712680269357,-500.0,0.00020273,2]
[322005548,1712680269366,-500.0,0.00020273,2]
[322005549,1712680269375,-500.0,0.00020273,2]
[322005550,1712680269385,-689.04,0.00020273,2]
[322005551,1712680269394,-500.0,0.00020273,2]
[322005552,1712680269404,-500.0,0.00020273,2]
[322005553,1712680269413,-500.0,0.00020273,2]
[322005554,1712680269424,-500.0,0.00020273,2]
[322005555,1712680269434,-500.0,0.00020273,2]
[322005556,1712680269444,-150.0,0.00020273,2]
[322005557,1712680269454,-500.0,0.00020273,2]
[322005558,1712680269463,-500.0,0.00020273,2]
[322005559,1712680269473,-898.68,0.00020273,2]
[322005560,1712680269485,-500.0,0.00020273,2]
[322005561,1712680269494,-506.76,0.00020273,2]
[322005562,1712680269503,-500.0,0.00020273,2]
[322005563,1712680269513,-500.0,0.00020273,2]
[322005564,1712680269522,-500.0,0.00020273,2]
[322005565,1712680269531,-500.0,0.00020273,2]
[322005566,1712680269541,-2045.74,0.00020273,2]
[322005567,1712680269550,-600.71,0.00020273,2]
[322005568,1712680269562,-500.0,0.00020273,2]
[322005569,1712680269573,-500.0,0.00020273,2]
[322005570,1712680269586,-500.0,0.00020273,2]
[322005571,1712680269595,-500.0,0.00020273,2]
[322005572,1712680269605,-500.0,0.00020273,2]
[322005573,1712680269614,-500.0,0.00020273,2]
[322005574,1712680269623,-603.77,0.00020273,2]
[322005575,1712680269633,-500.0,0.00020273,2]
[322005576,1712680269643,-583.24,0.00020273,2]
[322005577,1712680269654,-575.73,0.00020273,2]
[322005578,1712680269664,-500.0,0.00020273,2]
[322005579,1712680269674,-503.99,0.00020273,2]
[322005580,1712680269683,-800.18,0.00020273,2]
[322005581,1712680269693,-500.0,0.00020273,2]
[322005582,1712680269703,-1679.69,0.00020273,2]
[322005583,1712680269713,-1571.07,0.00020273,2]
[322005584,1712680269723,-500.0,0.00020273,2]
[322005585,1712680269735,-684.28,0.00020273,2]
[322005586,1712680269744,-574.87,0.00020273,2]
[322005587,1712680269755,-16205.76,0.00020273,2]
[322005588,1712680269766,-3195.09,0.00020273,2]
[322005589,1712680269776,-802.42,0.00020273,2]
[322005590,1712680269786,-400.1,0.00020273,2]
[322005591,1712680269797,-1224.29,0.00020273,2]
[322005592,1712680269808,-1242.84,0.00020273,2]
[322005593,1712680269819,-500.0,0.00020273,2]
[322005594,1712680269831,-1373.6,0.00020273,2]
[322005595,1712680269842,-1697.57,0.00020273,2]
[322005596,1712680269853,-500.0,0.00020273,2]
[322005597,1712680269863,-780.83,0.00020273,2]
[322005598,1712680269874,-500.0,0.00020273,2]
[322005599,1712680269885,-4302.2,0.00020273,2]
[322005600,1712680269897,-500.0,0.00020273,2]
[322005601,1712680269908,-835.88,0.00020273,2]
[322005602,1712680269920,-1387.05,0.00020273,2]
[322005603,1712680269931,-826.55,0.00020273,2]
[322005604,1712680269942,-2436.04,0.00020273,2]
[322005605,1712680269954,-837.88,0.00020273,2]
[322005606,1712680269965,-853.89,0.00020273,2]
[322005607,1712680269976,-1974.95,0.00020273,2]
[322005608,1712680269993,-1661.07,0.00020273,2]
[322005609,1712680270005,-2244.64,0.00020273,2]
[322005610,1712680270017,-500.0,0.00020273,2]
[322005611,1712680270031,-515.67,0.00020273,2]
[322005612,1712680270045,-511.15,0.00020273,2]
[322005613,1712680270065,-500.0,0.00020273,2]
[322005614,1712680270086,-1057.74,0.00020273,2]
[322005615,1712680270109,-500.0,0.00020273,2]
[322005616,1712680270132,-561.58,0.00020273,2]
[322005617,1712680270153,-500.0,0.00020273,2]
[322005618,1712680270173,-1024.79,0.00020273,2]
[322005619,1712680270197,-1562.97,0.00020273,2]
[322005620,1712680270221,-819.86,0.00020273,2]
[322005621,1712680270240,-2214.53,0.00020273,2]
[322005622,1712680270253,-1602.62,0.00020273,2]
[322005623,1712680270264,-879.78,0.00020273,2]
[322005624,1712680270276,-500.0,0.00020273,2]
[322005625,1712680270287,-863.4,0.00020273,2]
[322005626,1712680270298,-558.86,0.00020273,2]
[322005627,1712680270309,-707.65,0.00020273,2]
[322005628,1712680270319,-5920.7,0.00020273,2]
[322005629,1712680270329,-2255.01,0.00020273,2]
[322005630,1712680270339,-500.0,0.00020273,2]
[322005631,1712680270349,-553.59,0.00020273,2]
[322005632,1712680270359,-500.0,0.00020273,2]
[322005633,1712680270369,-1059.12,0.00020273,2]
[322005634,1712680270380,-500.0,0.00020273,2]
[322005635,1712680270390,-500.0,0.00020273,2]
[322005636,1712680270400,-681.07,0.00020273,2]
[322005637,1712680270410,-1000.7,0.00020273,2]
[322005638,1712680270420,-4546.13,0.00020273,2]
[322005639,1712680270430,-532.94,0.00020273,2]
[322005640,1712680270439,-705.72,0.00020273,2]
[322005641,1712680270449,-2508.04,0.00020273,2]
[322005642,1712680270460,-1116.02,0.00020273,2]
[322005643,1712680270469,-943.63,0.00020273,2]
[322005644,1712680270480,-4234.14,0.00020273,2]
[322005645,1712680270490,-500.0,0.00020273,2]
[322005646,1712680270500,-1413.92,0.00020273,2]
[322005647,1712680270509,-3535.6,0.00020273,2]
[322005648,1712680270519,-1329.74,0.00020273,2]
[322005649,1712680270529,-500.0,0.00020273,2]
[322005650,1712680270538,-847.0,0.00020273,2]
[322005651,1712680270548,-2156.66,0.00020273,2]
[322005652,1712680270559,-1984.44,0.00020273,2]
[322005653,1712680270568,-529.31,0.00020273,2]
[322005654,1712680270579,-5626.81,0.00020273,2]
[322005655,1712680270588,-658.29,0.00020273,2]
[322005656,1712680270598,-801.1,0.00020273,2]
[322005657,1712680270608,-500.0,0.00020273,2]
[322005658,1712680270618,-1176.87,0.00020273,2]
[322005659,1712680270627,-890.72,0.00020273,2]
[322005660,1712680270637,-9864.84,0.00020273,2]
[322005661,1712680270646,-312.77109774,0.00020273,2]
[322005662,1712680270657,-871.45,0.00020273,2]
[322005663,1712680270666,-500.0,0.00020273,2]
[322005664,1712680270677,-694.0,0.00020273,2]
[322005665,1712680270686,-1925.56,0.00020273,2]
[322005666,1712680270695,-1296.71,0.00020273,2]
[322005667,1712680270706,-655.74,0.00020273,2]
[322005668,1712680270716,-500.0,0.00020273,2]
[322005669,1712680270726,-336.6,0.00020273,2]
[322005670,1712680270739,-500.0,0.00020273,2]
[322005671,1712680270754,-1424.12,0.00020273,2]
[322005672,1712680270776,-500.0,0.00020273,2]
[322005673,1712680270796,-1522.94,0.00020273,2]
[322005674,1712680270819,-1586.38,0.00020273,2]
[322005675,1712680270842,-500.0,0.00020273,2]
[322005676,1712680270865,-1180.26,0.00020273,2]
[322005677,1712680270888,-1009.43,0.00020273,2]
[322005678,1712680270908,-1435.6,0.00020273,2]
[322005679,1712680270918,-500.0,0.00020273,2]
[322005680,1712680270928,-169.05,0.00020273,2]
[322005681,1712680270937,-500.0,0.00020273,2]
[322005682,1712680270946,-719.49,0.00020273,2]
[322005683,1712680270956,-500.0,0.00020273,2]
[322005684,1712680270966,-500.0,0.00020273,2]
[322005685,1712680270975,-500.0,0.00020273,2]
[322005686,1712680270986,-1192.2,0.00020273,2]
[322005687,1712680270996,-500.0,0.00020273,2]
[322005688,1712680271005,-500.0,0.00020273,2]
[322005689,1712680271015,-1179.35,0.00020273,2]
[322005690,1712680271025,-639.26,0.00020273,2]
[322005691,1712680271035,-597.82,0.00020273,2]
[322005692,1712680271044,-908.33,0.00020273,2]
[322005693,1712680271054,-500.0,0.00020273,2]
[322005694,1712680271063,-553.84,0.00020273,2]
[322005695,1712680271073,-500.0,0.00020273,2]
[322005696,1712680271082,-500.0,0.00020273,2]
[322005697,1712680271092,-384.09746239,0.00020326,2]
[322005698,1712680271102,-7623.58885357,0.00020361,2]
[322005699,1712680271111,-200.0,0.00020364,2]
[322005700,1712680271121,-393.47850099,0.00020369,2]
[322005701,1712680271130,-393.47850099,0.00020369,2]
[322005702,1712680271140,-1000.0,0.00020383,2]
[322005703,1712680271150,-200.0,0.00020383,2]
[322005704,1712680271159,-167.23,0.00020428,2]
[322005705,1712680271171,-167.41,0.00020432,2]
[322005706,1712680271181,-238.36463282,0.00020446,3]
[322005707,1712680271192,-13561.21454124,0.00020447,2]
[322005708,1712680271261,-271.20188161,0.00020486,2]
[322005709,1712680271272,-624.39,0.00020492,2]
[322005710,1712680271281,-177.99290906,0.000205,2]
[322005711,1712680271291,-1001.5318234,0.000205,2]
[322005712,1712680271300,-150.0,0.000205,2]
[322005713,1712680271309,-500.0,0.000205,2]
[322005714,1712680271319,-1300.86,0.00020513,2]
[322005715,1712680271329,-214.77,0.00020516,2]
[322005716,1712680271338,-150.0,0.00020521,4]
[322005717,1712680271349,-150.0,0.00020521,4]
[322005718,1712680271358,-150.0,0.00020521,4]
[322005719,1712680271368,-150.0,0.00020521,4]
[322005720,1712680271377,-1000.0,0.00020545,2]
[322005721,1712680271387,-1000.0,0.00020545,2]
[322005722,1712680271396,-1000.0,0.00020545,2]
[322005723,1712680271405,-1000.0,0.00020545,2]
[322005724,1712680271414,-1000.0,0.00020545,2]
[322005725,1712680271423,-744.574893,0.00020545,2]
[322005726,1712680271432,-534044.21082949,0.00020546,2]
[322005732,1712680349707,530.73,0.00017519,2]
[322005733,1712680379477,748.40426388,0.00017168,2]
[322005752,1712680518974,2997.29,0.000282,120]
[322005776,1712680807795,157.56,0.00025113,120]
[322005777,1712680808126,157.56,0.00027396,120]
[322005778,1712680834490,560.06,0.00016344,2]
[322005779,1712681171581,23900.0,0.00017994,2]
[322005781,1712681182514,151.28,0.00018002,2]
[322005782,1712681228230,-199.86363479,0.00018051,2]
[322005783,1712681228254,-150.0,0.00018052,2]
[322005784,1712681228275,-250.0,0.00018241,2]
[322005785,1712681228297,-157.56,0.00018264,2]
[322005786,1712681228317,-433.96,0.00018405,2]
[322005787,1712681228337,-7485.32692737,0.00018552,2]
[322005788,1712681228358,-880.0,0.00018553,2]
[322005789,1712681228381,-560.06,0.00018608,2]
[322005790,1712681228400,-150.0,0.0001863,2]
[322005791,1712681228421,-150.0,0.00018651,2]
[322005792,1712681228442,-2431.5363,0.00018697,2]
[322005793,1712681228463,-9999.99,0.00018697,2]
[322005794,1712681228485,-270.5714058,0.00018798,2]
[322005795,1712681228505,-166.70594188,0.00018896,2]
[322005796,1712681228525,-4018.87928618,0.00018898,2]
[322005797,1712681229097,-12554.92441382,0.00018898,2]
[322005798,1712681229117,-239.04,0.00018904,2]
[322005799,1712681229137,-1000.0,0.00018914,2]
[322005800,1712681229156,-1000.0,0.00018914,2]
[322005801,1712681229175,-1000.0,0.00018976,2]
[322005802,1712681229194,-1879.5845,0.00018976,2]
[322005803,1712681229214,-194.53159637,0.00018977,2]
[322005804,1712681229236,-4082.89247724,0.00018977,2]
[322005805,1712681229255,-301.79086339,0.00018977,2]
[322005806,1712681229278,-5717.69164026,0.00018977,2]
[322005807,1712681229298,-499.99,0.00018978,2]
[322005808,1712681229318,-3336.31747945,0.00018997,2]
[322005810,1712681236531,200.0,0.000186,6]
[322005811,1712681238648,500.0,0.000187,6]
[322005812,1712681240862,700.0,0.000188,6]
[322005813,1712681243034,1000.0,0.000189,6]
[322005814,1712681245147,1200.0,0.000199,7]
[322005815,1712681394759,504.05,0.00016378,2]
[322005847,1712681432319,-199.86363479,0.00018359,2]
[322005848,1712681432329,-250.0,0.0001836,2]
[322005849,1712681432338,-3898.69904932,0.00018451,2]
[322005850,1712681432479,-496.701815,0.00018451,2]
[322005851,1712681432513,-3089.92606305,0.00018451,2]
[322005852,1712681432523,-3014.5735,0.00018452,2]
[322005853,1712681432532,-288.97,0.00018495,2]
[322005854,1712681432541,-504.05,0.00018642,2]
[322005855,1712681432551,-1000.0,0.00018903,2]
[322005856,1712681432560,-1658.4122,0.00018976,2]
[322005857,1712681432569,-11942.03471988,0.00018977,2]
[322005858,1712681432578,-816.84042617,0.00018977,2]
[322005859,1712681432588,-301.7908633,0.00018977,2]
[322005860,1712681432597,-675.68752781,0.00018977,2]
[322005861,1712681432606,-3674.60322957,0.00018977,2]
[322005862,1712681432616,-272.11294965,0.00018997,2]
[322005863,1712681432625,-499.87975154,0.00018998,2]
[322005864,1712681432634,-1250.0,0.00019,3]
[322005865,1712681432643,-3698.759,0.0001904,2]
[322005866,1712681432655,-4469.64,0.00019076,2]
[322005867,1712681432664,-4469.64,0.00019076,2]
[322005868,1712681432674,-4469.64,0.00019076,2]
[322005869,1712681432683,-4469.64,0.00019076,2]
[322005870,1712681432692,-4469.64,0.00019076,2]
[322005871,1712681432701,-4469.64,0.00019076,2]
[322005872,1712681432711,-4469.64,0.00019076,2]
[322005873,1712681432720,-4469.64,0.00019076,2]
[322005874,1712681432729,-4469.64,0.00019076,2]
[322005875,1712681432738,-4469.64,0.00019076,2]
[322005876,1712681432747,-4469.64,0.00019076,2]
[322005877,1712681432757,-4469.64,0.00019076,2]
[322005878,1712681432767,-4469.64,0.00019076,2]
[322005880,1712681432776,-4469.64,0.00019076,2]
[322005882,1712681432785,-4469.64,0.00019076,2]
[322005884,1712681432795,-4469.64,0.00019076,2]
[322005886,1712681432804,-4469.64,0.00019076,2]
[322005888,1712681432814,-4469.64,0.00019076,2]
[322005890,1712681432823,-4469.64,0.00019076,2]
[322005892,1712681432833,-4469.64,0.00019076,2]
[322005894,1712681432842,-4469.64,0.00019076,2]
[322005896,1712681432851,-4469.64,0.00019076,2]
[322005898,1712681432861,-4469.64,0.00019076,2]
[322005900,1712681432870,-4469.82207617,0.00019076,2]